[Event "Nové Hrady - Blesk"]
[Site "Nové Hrady, Czech Republic"]
[Date "2023.08.17"]
[Round "3.3"]
[White "Hak, David"]
[Black "Babula, Milan"]
[Result "1-0"]
[TimeControl "2x3+2s"]
[WhiteFideId "377007"]
[BlackFideId "300632"]
[WhiteElo "2037"]
[BlackElo "2176"]

1. d4 {[%clk 00:03:03]} {[%emt 00:00:02]} Nf6 {[%clk 00:03:02]} {[%emt
00:00:02]} 2. c4 {[%clk 00:03:04]} c5 {[%clk 00:03:03]} 3. d5 {[%clk 00:03:04]}
{[%emt 00:00:04]} e6 {[%clk 00:03:04]} 4. Nc3 {[%clk 00:03:05]} exd5 {[%clk
00:03:05]} 5. cxd5 {[%clk 00:03:06]} d6 {[%clk 00:03:06]} 6. Nf3 {[%clk
00:03:02]} {[%emt 00:00:09]} g6 {[%clk 00:03:07]} 7. Bf4 {[%clk 00:03:03]} Bg7
{[%clk 00:03:04]} {[%emt 00:00:08]} 8. Qa4+ {[%clk 00:02:59]} {[%emt 00:00:07]}
Bd7 {[%emt 00:00:06]} 9. Qb3 Qc7 {[%clk 00:02:45]} {[%emt 00:00:17]} 10. h3
{[%clk 00:03:00]} {[%emt 00:00:01]} O-O {[%clk 00:02:39]} {[%emt 00:00:08]} 11.
e3 {[%clk 00:03:00]} {[%emt 00:00:02]} a6 {[%clk 00:02:36]} {[%emt 00:00:05]}
12. a4 {[%clk 00:02:59]} {[%emt 00:00:03]} b6 {[%clk 00:02:33]} {[%emt
00:00:05]} 13. Be2 {[%clk 00:02:53]} {[%emt 00:00:07]} Ra7 {[%clk 00:02:28]}
{[%emt 00:00:09]} 14. Nd2 {[%clk 00:02:50]} {[%emt 00:00:04]} Rb7 {[%clk
00:02:21]} {[%emt 00:00:09]} 15. Nc4 {[%clk 00:02:37]} {[%emt 00:00:15]} Ne8
{[%clk 00:02:21]} {[%emt 00:00:02]} 16. Ne4 {[%clk 00:02:01]} {[%emt 00:00:37]}
Be5 {[%clk 00:01:40]} {[%emt 00:00:44]} 17. Bxe5 {[%clk 00:01:20]} {[%emt
00:00:43]} dxe5 {[%clk 00:01:40]} {[%emt 00:00:02]} 18. d6 {[%clk 00:01:21]}
Qc6 {[%clk 00:01:36]} {[%emt 00:00:08]} 19. Bf3 {[%clk 00:01:22]} Qc8 {[%clk
00:01:11]} {[%emt 00:00:28]} 20. Nxe5 {[%clk 00:00:51]} {[%emt 00:00:32]} Be6
{[%clk 00:01:10]} {[%emt 00:00:03]} 21. Qc3 {[%clk 00:00:50]} {[%emt 00:00:02]}
Nd7 {[%clk 00:00:50]} {[%emt 00:00:23]} 22. Ng5 {[%clk 00:00:37]} {[%emt
00:00:15]} Rb8 {[%clk 00:00:38]} {[%emt 00:00:14]} 23. Nxe6 {[%clk 00:00:35]}
{[%emt 00:00:04]} fxe6 {[%clk 00:00:38]} {[%emt 00:00:02]} 24. Ng4 {[%clk
00:00:36]} Ng7 {[%clk 00:00:30]} {[%emt 00:00:11]} 25. O-O {[%clk 00:00:34]}
{[%emt 00:00:04]} h5 {[%clk 00:00:26]} {[%emt 00:00:07]} 26. Ne5 {[%clk
00:00:32]} {[%emt 00:00:03]} Kh7 {[%clk 00:00:20]} {[%emt 00:00:07]} 27. Nc6
{[%clk 00:00:31]} {[%emt 00:00:04]} Rb7 {[%clk 00:00:19]} {[%emt 00:00:04]} 28.
Ne7 {[%clk 00:00:32]} Qb8 {[%clk 00:00:20]} {[%emt 00:00:01]} 29. Bxb7 {[%clk
00:00:32]} Qxb7 {[%clk 00:00:21]} 30. Rad1 {[%clk 00:00:31]} {[%emt 00:00:04]}
Re8 {[%clk 00:00:18]} {[%emt 00:00:05]} 31. Qb3 {[%clk 00:00:30]} {[%emt
00:00:03]} Nf8 {[%clk 00:00:16]} {[%emt 00:00:04]} 32. a5 {[%clk 00:00:30]}
{[%emt 00:00:03]} b5 {[%clk 00:00:15]} {[%emt 00:00:03]} 33. Qc3 {[%clk
00:00:31]} c4 {[%clk 00:00:14]} {[%emt 00:00:04]} 34. Qd4 {[%clk 00:00:31]} Qd7
{[%clk 00:00:15]} 35. Qb6 {[%clk 00:00:32]} {[%emt 00:00:03]} Ra8 {[%clk
00:00:16]} {[%emt 00:00:01]} 36. Qc7 {[%clk 00:00:31]} {[%emt 00:00:03]} Ra7
{[%clk 00:00:15]} {[%emt 00:00:03]} 37. Qb8 {[%clk 00:00:30]} {[%emt 00:00:02]}
Ne8 {[%clk 00:00:11]} {[%emt 00:00:06]} 38. Rd4 {[%clk 00:00:26]} {[%emt
00:00:07]} Rb7 {[%clk 00:00:12]} 39. Qc8 {[%clk 00:00:26]} {[%emt 00:00:03]}
Kg7 {[%clk 00:00:11]} {[%emt 00:00:02]} 40. Qxd7 {[%clk 00:00:26]} {[%emt
00:00:02]} Nxd7 {[%clk 00:00:12]} 41. e4 {[%clk 00:00:26]} {[%emt 00:00:03]} e5
{[%emt 00:00:03]} 42. Rd2 {[%clk 00:00:27]} Kf7 {[%clk 00:00:14]} 43. Nd5
{[%clk 00:00:27]} {[%emt 00:00:02]} Nxd6 {[%clk 00:00:13]} {[%emt 00:00:03]} 44.
f4 {[%clk 00:00:26]} {[%emt 00:00:04]} Nxe4 {[%clk 00:00:13]} 45. Re2 {[%clk
00:00:28]} Ndc5 {[%clk 00:00:13]} {[%emt 00:00:03]} 46. fxe5+ {[%clk 00:00:28]}
Ke6 {[%clk 00:00:13]} {[%emt 00:00:03]} 47. Nf4+ {[%clk 00:00:29]} Kxe5 {[%clk
00:00:14]} 48. Nxg6+ {[%clk 00:00:30]} Kd5 {[%clk 00:00:15]} {[%emt 00:00:03]}
49. Rd1+ {[%clk 00:00:31]} Nd3 {[%clk 00:00:16]} 50. Nf4+ {[%emt 00:00:04]} Kd4
51. Nxd3 {[%clk 00:00:33]} cxd3 {[%emt 00:00:03]} 52. g4 {[%clk 00:00:27]}
{[%emt 00:00:06]} Rc7 {[%clk 00:00:19]} {[%emt 00:00:01]} 53. gxh5 {[%clk
00:00:25]} {[%emt 00:00:04]} Rh7 {[%clk 00:00:18]} {[%emt 00:00:06]} 54. Rg2
{[%clk 00:00:26]} Rxh5 {[%clk 00:00:19]} {[%emt 00:00:03]} 55. Rg8 {[%clk
00:00:28]} 1-0

[Event "Nové Hrady - Blesk"]
[Site "Nové Hrady, Czech Republic"]
[Date "2023.08.17"]
[Round "3.4"]
[White "Sadil, Antonin"]
[Black "Papacek, Stepan"]
[Result "0-1"]
[TimeControl "2x3+2s"]
[WhiteFideId "23735597"]
[BlackFideId "301035"]
[WhiteElo "1697"]
[BlackElo "2137"]

1. e4 {[%clk 00:02:59]} {[%emt 00:00:05]} e6 {[%clk 00:03:03]} 2. d4 {[%clk
00:03:00]} {[%emt 00:00:03]} d5 {[%clk 00:03:04]} 3. Nc3 {[%clk 00:03:00]}
{[%emt 00:00:02]} Bb4 {[%clk 00:03:05]} 4. e5 {[%clk 00:03:01]} c5 {[%clk
00:03:06]} 5. a3 {[%clk 00:03:02]} Bxc3+ {[%clk 00:03:06]} {[%emt 00:00:05]} 6.
bxc3 {[%clk 00:03:02]} {[%emt 00:00:02]} Qc7 {[%clk 00:03:07]} {[%emt
00:00:01]} 7. Nf3 {[%clk 00:02:41]} {[%emt 00:00:23]} Ne7 {[%clk 00:03:05]}
{[%emt 00:00:04]} 8. Be3 {[%clk 00:02:32]} {[%emt 00:00:11]} b6 {[%clk
00:03:01]} {[%emt 00:00:06]} 9. Bb5+ {[%clk 00:02:32]} {[%emt 00:00:02]} Bd7
{[%clk 00:02:50]} {[%emt 00:00:13]} 10. Bxd7+ {[%clk 00:02:31]} {[%emt
00:00:03]} Nxd7 {[%clk 00:02:48]} {[%emt 00:00:03]} 11. O-O {[%clk 00:02:30]}
{[%emt 00:00:04]} O-O {[%clk 00:02:39]} {[%emt 00:00:11]} 12. Ng5 {[%clk
00:02:07]} {[%emt 00:00:25]} h6 {[%clk 00:02:24]} {[%emt 00:00:16]} 13. Nh3
{[%clk 00:02:07]} {[%emt 00:00:02]} Rac8 {[%clk 00:02:22]} {[%emt 00:00:05]} 14.
Qg4 {[%clk 00:02:07]} {[%emt 00:00:02]} Nf5 {[%clk 00:02:21]} {[%emt 00:00:03]}
15. Nf4 {[%clk 00:01:42]} {[%emt 00:00:27]} Qd8 {[%clk 00:01:48]} {[%emt
00:00:34]} 16. dxc5 {[%clk 00:01:24]} {[%emt 00:00:20]} Nxe5 {[%clk 00:01:44]}
{[%emt 00:00:06]} 17. Qh3 {[%clk 00:01:09]} {[%emt 00:00:17]} bxc5 {[%clk
00:01:41]} {[%emt 00:00:06]} 18. Rad1 {[%clk 00:01:01]} {[%emt 00:00:10]} Qh4
{[%clk 00:01:39]} {[%emt 00:00:04]} 19. Rfe1 {[%clk 00:00:44]} {[%emt
00:00:19]} Qxh3 {[%clk 00:01:39]} {[%emt 00:00:03]} 20. Nxh3 {[%clk 00:00:44]}
{[%emt 00:00:01]} Nxe3 {[%clk 00:01:37]} {[%emt 00:00:04]} 21. Rxe3 {[%clk
00:00:43]} {[%emt 00:00:03]} Nc4 {[%clk 00:01:38]} {[%emt 00:00:01]} 22. Rg3
{[%clk 00:00:41]} {[%emt 00:00:04]} Nxa3 {[%clk 00:01:34]} {[%emt 00:00:07]} 23.
Ra1 {[%clk 00:00:41]} {[%emt 00:00:01]} Nc4 {[%clk 00:01:29]} {[%emt 00:00:06]}
24. Rxa7 {[%clk 00:00:39]} {[%emt 00:00:05]} Ra8 {[%clk 00:01:30]} 25. Rxa8
{[%clk 00:00:35]} {[%emt 00:00:06]} Rxa8 {[%clk 00:01:31]} 26. f3 {[%clk
00:00:31]} {[%emt 00:00:08]} Ra2 {[%clk 00:01:31]} {[%emt 00:00:02]} 27. Nf4
{[%clk 00:00:24]} {[%emt 00:00:10]} Rxc2 {[%clk 00:01:29]} {[%emt 00:00:03]} 28.
Nh5 {[%clk 00:00:25]} g6 {[%clk 00:01:26]} {[%emt 00:00:06]} 29. Nf6+ {[%clk
00:00:20]} {[%emt 00:00:07]} Kg7 {[%clk 00:01:20]} {[%emt 00:00:07]} 30. Nd7
{[%clk 00:00:18]} {[%emt 00:00:04]} Rxc3 {[%clk 00:01:15]} {[%emt 00:00:07]} 31.
Nxc5 {[%clk 00:00:15]} {[%emt 00:00:06]} Ne3 {[%clk 00:01:15]} {[%emt
00:00:02]} 32. Kf2 {[%clk 00:00:06]} {[%emt 00:00:11]} Nf5 {[%clk 00:01:16]}
0-1

[Event "Nové Hrady - Blesk"]
[Site "Nové Hrady, Czech Republic"]
[Date "2023.08.17"]
[Round "3.5"]
[White "Rausch, Rudolf"]
[Black "Hostička, František"]
[Result "1-0"]
[TimeControl "2x3+2s"]
[WhiteFideId "1639455"]
[BlackFideId "302295"]
[WhiteElo "1806"]
[BlackElo "2074"]

1. d4 {[%clk 00:03:03]} Nf6 {[%clk 00:03:04]} 2. c4 {[%clk 00:03:04]} e6 {[%clk
00:03:05]} 3. Nc3 {[%clk 00:03:05]} Bb4 {[%clk 00:03:06]} 4. Bd2 {[%clk
00:03:05]} d5 {[%clk 00:03:07]} 5. cxd5 {[%clk 00:03:06]} exd5 {[%clk
00:03:08]} 6. Nf3 {[%clk 00:03:07]} O-O {[%clk 00:03:09]} 7. e3 {[%clk
00:03:08]} Re8 {[%clk 00:03:07]} 8. Be2 {[%clk 00:03:09]} c6 {[%clk 00:03:05]}
9. O-O {[%clk 00:03:09]} Bd6 {[%clk 00:03:06]} 10. a3 {[%clk 00:03:10]} a5
{[%clk 00:03:04]} 11. Rb1 {[%clk 00:03:09]} Qc7 {[%clk 00:03:04]} 12. g3 {[%clk
00:03:09]} Bh3 {[%clk 00:03:03]} 13. Re1 {[%clk 00:03:08]} h6 {[%clk 00:03:04]}
14. Bf1 {[%clk 00:03:05]} 1-0

[Event "Nové Hrady - Blesk"]
[Site "Nové Hrady, Czech Republic"]
[Date "2023.08.17"]
[Round "3.6"]
[White "Steinbauer, Sebastian"]
[Black "Blazek, Jiri"]
[Result "0-1"]
[TimeControl "2x3+2s"]
[WhiteFideId "399272"]
[BlackFideId "330515"]
[WhiteElo "1660"]
[BlackElo "2061"]

1. e4 {[%clk 00:03:02]} {[%emt 00:00:02]} e6 {[%clk 00:03:04]} 2. d4 {[%clk
00:03:03]} d5 {[%clk 00:03:05]} 3. exd5 {[%clk 00:03:04]} exd5 {[%clk
00:03:06]} 4. Bd3 {[%clk 00:03:05]} {[%emt 00:00:06]} Nf6 {[%clk 00:03:03]}
{[%emt 00:00:05]} 5. Nf3 {[%clk 00:03:04]} {[%emt 00:00:02]} Bd6 {[%clk
00:03:03]} {[%emt 00:00:02]} 6. Bg5 {[%clk 00:03:01]} {[%emt 00:00:05]} h6
{[%clk 00:03:00]} {[%emt 00:00:05]} 7. Bh4 {[%clk 00:03:02]} {[%emt 00:00:02]}
O-O {[%clk 00:02:57]} {[%emt 00:00:05]} 8. O-O {[%clk 00:03:01]} {[%emt
00:00:02]} Bg4 {[%clk 00:02:57]} {[%emt 00:00:02]} 9. Nbd2 {[%clk 00:02:59]}
{[%emt 00:00:04]} Nbd7 {[%clk 00:02:46]} {[%emt 00:00:13]} 10. c3 {[%clk
00:02:58]} {[%emt 00:00:04]} c6 {[%clk 00:02:36]} {[%emt 00:00:11]} 11. h3
{[%clk 00:02:57]} {[%emt 00:00:04]} Bh5 {[%clk 00:02:37]} 12. Qc2 {[%clk
00:02:51]} {[%emt 00:00:08]} Bxf3 {[%clk 00:02:08]} {[%emt 00:00:31]} 13. Nxf3
{[%clk 00:02:51]} {[%emt 00:00:02]} Qc7 {[%clk 00:02:01]} {[%emt 00:00:10]} 14.
Rfe1 {[%clk 00:02:45]} {[%emt 00:00:07]} Rae8 {[%clk 00:02:02]} 15. Rad1 {[%clk
00:02:08]} {[%emt 00:00:41]} g5 {[%clk 00:01:25]} {[%emt 00:00:38]} 16. Bg3
{[%clk 00:01:53]} {[%emt 00:00:17]} Bxg3 {[%clk 00:01:23]} {[%emt 00:00:04]} 17.
fxg3 {[%clk 00:01:53]} {[%emt 00:00:02]} Qxg3 {[%clk 00:01:18]} {[%emt
00:00:07]} 18. Qd2 {[%clk 00:01:48]} {[%emt 00:00:07]} Nh5 {[%clk 00:01:01]}
{[%emt 00:00:20]} 19. Bf5 {[%clk 00:01:32]} {[%emt 00:00:18]} Ndf6 {[%clk
00:00:52]} {[%emt 00:00:11]} 20. Ne5 {[%clk 00:01:28]} {[%emt 00:00:06]} Ne4
{[%clk 00:00:30]} {[%emt 00:00:24]} 21. Qc2 {[%clk 00:01:06]} {[%emt 00:00:23]}
Qf4 {[%clk 00:00:10]} {[%emt 00:00:22]} 22. Bxe4 {[%clk 00:01:03]} {[%emt
00:00:06]} dxe4 {[%clk 00:00:10]} 23. Rxe4 {[%clk 00:01:01]} {[%emt 00:00:04]}
Qf5 {[%clk 00:00:10]} {[%emt 00:00:02]} 24. Rf1 {[%clk 00:01:02]} {[%emt
00:00:02]} Qh7 {[%clk 00:00:07]} {[%emt 00:00:05]} 25. Qe2 {[%clk 00:00:59]}
{[%emt 00:00:04]} f6 {[%clk 00:00:07]} {[%emt 00:00:02]} 26. Re3 {[%clk
00:00:12]} {[%emt 00:00:49]} fxe5 {[%clk 00:00:05]} {[%emt 00:00:05]} 27. Qxh5
{[%clk 00:00:13]} Rxf1+ {[%clk 00:00:05]} {[%emt 00:00:02]} 28. Kxf1 {[%emt
00:00:02]} Rf8+ 29. Kg1 {[%clk 00:00:14]} {[%emt 00:00:01]} Qf5 {[%clk
00:00:07]} {[%emt 00:00:02]} 30. Rf3 {[%clk 00:00:12]} {[%emt 00:00:05]} Qb1+
{[%clk 00:00:07]} {[%emt 00:00:02]} 31. Kh2 {[%clk 00:00:13]} Rxf3 {[%clk
00:00:08]} 32. Qxf3 {[%clk 00:00:11]} {[%emt 00:00:05]} exd4 {[%clk 00:00:09]}
33. cxd4 {[%clk 00:00:11]} {[%emt 00:00:04]} Qxb2 {[%clk 00:00:09]} 34. Qe4
{[%clk 00:00:10]} {[%emt 00:00:03]} Qb5 {[%clk 00:00:09]} {[%emt 00:00:03]} 35.
Qe8+ {[%clk 00:00:09]} {[%emt 00:00:02]} Kg7 {[%clk 00:00:10]} 36. Qe7+ {[%clk
00:00:10]} {[%emt 00:00:03]} Kg6 {[%clk 00:00:11]} 37. Qe8+ {[%clk 00:00:11]}
Kf5 {[%clk 00:00:12]} 38. Qf7+ {[%clk 00:00:11]} {[%emt 00:00:05]} Ke4 {[%clk
00:00:13]} 39. Qf6 {[%clk 00:00:06]} {[%emt 00:00:06]} Kd3 {[%clk 00:00:14]}
{[%emt 00:00:02]} 40. Qf3+ {[%clk 00:00:05]} {[%emt 00:00:04]} Kxd4 {[%clk
00:00:14]} 41. Qf6+ {[%clk 00:00:06]} Qe5+ {[%clk 00:00:15]} 42. Qxe5+ {[%clk
00:00:06]} {[%emt 00:00:03]} Kxe5 {[%clk 00:00:17]} 43. Kg3 {[%clk 00:00:08]}
c5 {[%clk 00:00:18]} 44. Kg4 {[%clk 00:00:08]} c4 {[%clk 00:00:19]} 0-1

[Event "Nové Hrady - Blesk"]
[Site "Nové Hrady, Czech Republic"]
[Date "2023.08.17"]
[Round "3.7"]
[White "Vybiral, Zdenek"]
[Black "Mácová, Markéta"]
[Result "1-0"]
[TimeControl "2x3+2s"]
[WhiteFideId "305200"]
[BlackFideId "23715588"]
[WhiteElo "2158"]
[BlackElo "1304"]

1. d4 {[%clk 00:03:02]} {[%emt 00:00:02]} Nf6 {[%clk 00:03:03]} {[%emt
00:00:02]} 2. c4 {[%clk 00:03:00]} {[%emt 00:00:09]} g6 {[%clk 00:03:04]} 3.
Nc3 {[%clk 00:03:00]} {[%emt 00:00:03]} Bg7 {[%clk 00:03:05]} 4. e4 {[%clk
00:03:00]} {[%emt 00:00:04]} d6 {[%clk 00:03:06]} 5. f4 {[%clk 00:03:00]}
{[%emt 00:00:02]} O-O {[%clk 00:03:06]} {[%emt 00:00:02]} 6. Nf3 {[%clk
00:03:01]} Bg4 {[%clk 00:03:06]} {[%emt 00:00:03]} 7. Be3 {[%clk 00:03:00]}
{[%emt 00:00:03]} Nbd7 {[%clk 00:03:07]} {[%emt 00:00:02]} 8. Be2 {[%clk
00:02:54]} {[%emt 00:00:08]} Rc8 {[%clk 00:03:03]} {[%emt 00:00:06]} 9. O-O
{[%clk 00:02:50]} {[%emt 00:00:06]} c5 {[%clk 00:03:02]} {[%emt 00:00:02]} 10.
d5 {[%clk 00:02:50]} {[%emt 00:00:02]} Re8 {[%clk 00:03:02]} {[%emt 00:00:03]}
11. e5 {[%clk 00:02:30]} {[%emt 00:00:21]} dxe5 {[%clk 00:02:55]} {[%emt
00:00:09]} 12. fxe5 {[%emt 00:00:13]} Nh5 {[%clk 00:02:34]} {[%emt 00:00:13]}
13. h3 {[%clk 00:02:14]} {[%emt 00:00:18]} Bxf3 {[%clk 00:02:34]} {[%emt
00:00:02]} 14. Bxf3 {[%clk 00:02:14]} Nxe5 {[%clk 00:02:30]} {[%emt 00:00:07]}
15. Bxh5 {[%clk 00:02:13]} {[%emt 00:00:03]} gxh5 {[%clk 00:02:31]} {[%emt
00:00:01]} 16. Qxh5 {[%emt 00:00:10]} Nxc4 {[%clk 00:02:17]} {[%emt 00:00:09]}
17. Qxf7+ {[%clk 00:02:10]} {[%emt 00:00:04]} Kh8 {[%clk 00:02:15]} {[%emt
00:00:05]} 18. Bg5 {[%clk 00:01:49]} {[%emt 00:00:23]} Ne5 {[%clk 00:02:03]}
{[%emt 00:00:14]} 19. Qh5 {[%clk 00:01:44]} {[%emt 00:00:06]} Qd6 {[%clk
00:01:55]} {[%emt 00:00:11]} 20. Rad1 {[%clk 00:01:29]} {[%emt 00:00:17]} Rf8
{[%clk 00:01:42]} {[%emt 00:00:15]} 21. Rfe1 {[%clk 00:01:18]} {[%emt
00:00:13]} Ng6 {[%clk 00:01:19]} {[%emt 00:00:25]} 22. Re6 {[%clk 00:01:08]}
{[%emt 00:00:11]} Qg3 {[%clk 00:01:00]} {[%emt 00:00:21]} 23. Ne4 {[%clk
00:00:50]} {[%emt 00:00:21]} Qc7 {[%clk 00:00:43]} {[%emt 00:00:19]} 24. Rxg6
{[%clk 00:00:45]} {[%emt 00:00:06]} Kg8 {[%clk 00:00:39]} {[%emt 00:00:07]} 25.
Rxg7+ {[%clk 00:00:38]} {[%emt 00:00:09]} Kxg7 {[%clk 00:00:39]} 26. Bh6+
{[%clk 00:00:35]} {[%emt 00:00:06]} Kg8 {[%clk 00:00:40]} {[%emt 00:00:02]} 27.
Qg5+ {[%clk 00:00:33]} {[%emt 00:00:05]} Kf7 {[%clk 00:00:36]} {[%emt
00:00:06]} 28. Qg7+ {[%clk 00:00:32]} {[%emt 00:00:01]} Ke8 {[%clk 00:00:37]}
29. Qxf8+ {[%clk 00:00:32]} {[%emt 00:00:03]} Kd7 {[%clk 00:00:38]} 30. Qf5+
{[%clk 00:00:29]} {[%emt 00:00:07]} Kd8 {[%clk 00:00:37]} {[%emt 00:00:02]} 31.
d6 {[%clk 00:00:24]} {[%emt 00:00:07]} exd6 {[%clk 00:00:25]} {[%emt 00:00:15]}
32. Rxd6+ {[%clk 00:00:25]} Ke8 {[%clk 00:00:18]} {[%emt 00:00:10]} 33. Qf8#
{[%clk 00:00:25]} 1-0

[Event "Nové Hrady - Blesk"]
[Site "Nové Hrady, Czech Republic"]
[Date "2023.08.17"]
[Round "3.8"]
[White "Valenz, Miroslav"]
[Black "Dudková, Josefína"]
[Result "1-0"]
[TimeControl "2x3+2s"]
[WhiteFideId "326283"]
[BlackFideId "23712350"]
[WhiteElo "1929"]
[BlackElo "1437"]

1. e4 {[%clk 00:02:59]} {[%emt 00:00:02]} d5 {[%clk 00:03:03]} {[%emt
00:00:01]} 2. Nc3 {[%clk 00:03:00]} {[%emt 00:00:02]} d4 {[%clk 00:03:04]} 3.
Nce2 {[%clk 00:03:01]} e5 {[%clk 00:03:04]} {[%emt 00:00:03]} 4. d3 {[%clk
00:03:02]} Nf6 {[%clk 00:03:02]} {[%emt 00:00:04]} 5. f4 {[%clk 00:03:03]} Bd6
{[%clk 00:02:57]} {[%emt 00:00:08]} 6. Nf3 {[%clk 00:03:04]} Nc6 {[%clk
00:02:56]} {[%emt 00:00:05]} 7. g3 {[%clk 00:03:03]} {[%emt 00:00:03]} O-O
{[%clk 00:02:39]} {[%emt 00:00:19]} 8. Bg2 {[%clk 00:03:04]} Be6 {[%clk
00:02:39]} {[%emt 00:00:03]} 9. f5 {[%clk 00:03:04]} {[%emt 00:00:02]} Bd7
{[%clk 00:02:40]} 10. O-O {[%clk 00:03:04]} {[%emt 00:00:03]} g6 {[%clk
00:02:29]} {[%emt 00:00:13]} 11. fxg6 {[%clk 00:02:55]} {[%emt 00:00:11]} fxg6
{[%clk 00:02:29]} {[%emt 00:00:02]} 12. Bh6 {[%clk 00:02:55]} {[%emt 00:00:02]}
Re8 {[%clk 00:02:20]} {[%emt 00:00:11]} 13. h3 {[%clk 00:02:39]} {[%emt
00:00:17]} Ne7 {[%clk 00:01:52]} {[%emt 00:00:31]} 14. g4 {[%clk 00:02:39]}
{[%emt 00:00:02]} c5 {[%clk 00:01:50]} {[%emt 00:00:04]} 15. Ng3 {[%clk
00:02:38]} {[%emt 00:00:02]} Rc8 {[%clk 00:01:41]} {[%emt 00:00:12]} 16. Ng5
{[%clk 00:02:16]} {[%emt 00:00:23]} Nc6 {[%clk 00:01:30]} {[%emt 00:00:13]} 17.
c3 {[%clk 00:02:13]} {[%emt 00:00:05]} b5 {[%clk 00:01:28]} {[%emt 00:00:05]}
18. Qb3+ {[%clk 00:02:01]} {[%emt 00:00:14]} Kh8 {[%clk 00:00:40]} {[%emt
00:00:49]} 19. Nf7+ {[%clk 00:02:00]} {[%emt 00:00:03]} Kg8 {[%clk 00:00:37]}
{[%emt 00:00:05]} 20. Nxd8+ {[%clk 00:02:00]} {[%emt 00:00:02]} Kh8 {[%clk
00:00:28]} {[%emt 00:00:11]} 21. Qf7 {[%clk 00:01:57]} {[%emt 00:00:06]} c4
{[%emt 00:00:11]} 1-0

[Event "Nové Hrady - Blesk"]
[Site "Nové Hrady, Czech Republic"]
[Date "2023.08.17"]
[Round "3.9"]
[White "Hokr, Matyas"]
[Black "Slabý, Matěj"]
[Result "0-1"]
[TimeControl "2x3+2s"]
[WhiteFideId "23734663"]
[BlackFideId "23734876"]
[WhiteElo "1472"]
[BlackElo "1894"]

1. Nf3 {[%clk 00:03:00]} {[%emt 00:00:02]} d5 {[%clk 00:02:56]} {[%emt
00:00:10]} 2. b3 {[%clk 00:03:01]} {[%emt 00:00:02]} Nc6 {[%clk 00:02:56]}
{[%emt 00:00:02]} 3. Bb2 {[%clk 00:03:02]} Bg4 {[%clk 00:02:57]} {[%emt
00:00:02]} 4. d4 {[%clk 00:03:02]} {[%emt 00:00:02]} e6 {[%clk 00:02:52]}
{[%emt 00:00:07]} 5. h3 {[%clk 00:03:01]} {[%emt 00:00:02]} Bxf3 {[%clk
00:02:53]} {[%emt 00:00:02]} 6. exf3 {[%clk 00:03:01]} {[%emt 00:00:02]} Nf6
{[%clk 00:02:52]} {[%emt 00:00:02]} 7. Bb5 {[%clk 00:03:01]} {[%emt 00:00:02]}
Qd7 {[%clk 00:02:52]} {[%emt 00:00:02]} 8. O-O {[%clk 00:02:59]} {[%emt
00:00:04]} a6 {[%clk 00:02:54]} 9. Bxc6 {[%clk 00:02:59]} {[%emt 00:00:04]}
Qxc6 {[%clk 00:02:55]} 10. Nd2 {[%clk 00:02:56]} {[%emt 00:00:04]} Bb4 {[%clk
00:02:55]} {[%emt 00:00:03]} 11. Rc1 {[%clk 00:02:31]} {[%emt 00:00:27]} Bc3
{[%clk 00:02:56]} 12. Ba3 {[%clk 00:02:26]} {[%emt 00:00:07]} Bxd4 {[%clk
00:02:46]} {[%emt 00:00:12]} 13. c4 {[%clk 00:02:21]} {[%emt 00:00:07]} O-O-O
{[%clk 00:02:38]} {[%emt 00:00:10]} 14. cxd5 {[%clk 00:02:20]} {[%emt
00:00:02]} Qxd5 {[%clk 00:02:39]} {[%emt 00:00:02]} 15. Qc2 {[%clk 00:02:14]}
{[%emt 00:00:08]} Rd7 {[%clk 00:01:53]} {[%emt 00:00:48]} 16. Rfd1 {[%clk
00:02:02]} {[%emt 00:00:14]} Rhd8 {[%clk 00:01:45]} {[%emt 00:00:10]} 17. Nc4
{[%clk 00:01:33]} {[%emt 00:00:31]} Kb8 {[%clk 00:00:56]} {[%emt 00:00:51]} 18.
Rd2 {[%clk 00:00:39]} {[%emt 00:00:56]} e5 {[%clk 00:00:48]} {[%emt 00:00:10]}
19. Rcd1 {[%clk 00:00:31]} {[%emt 00:00:08]} Qe6 {[%clk 00:00:37]} {[%emt
00:00:15]} 20. Bb4 {[%clk 00:00:15]} {[%emt 00:00:18]} Nd5 {[%clk 00:00:30]}
{[%emt 00:00:09]} 21. Ba3 {[%clk 00:00:08]} {[%emt 00:00:09]} Nf4 {[%clk
00:00:14]} {[%emt 00:00:18]} 22. Re1 {[%clk 00:00:05]} {[%emt 00:00:05]} Nxh3+
{[%clk 00:00:08]} {[%emt 00:00:08]} 23. gxh3 {[%clk 00:00:05]} {[%emt
00:00:02]} Qxh3 {[%clk 00:00:09]} 24. Nxe5 {[%clk 00:00:05]} {[%emt 00:00:03]}
Qg3+ {[%emt 00:00:23]} 0-1